{"text_format":"3","workbook":"xlsx","n_sheets":1,"sheets":["Kostenkontrollblatt|Baureferat"],"not_rendered":{"images":1,"defined_names":4},"read":"whole","date_system":"1900"}

{"sheet":"Kostenkontrollblatt|Baureferat","index":0,"n_rows":422,"n_cols":11,"rows_kept":422,"merged":[[421,0,421,1]]}
["Kath. Kirchenstiftung (Name) - (Gebäude) z.B. Pfarrkirche - (Maßnahme) z.B. Innenrenovierung"]
[]
["K O S T E N K O N T R O L L B L A T T   DIN 276 | 2008"]
[]
["Nr.","KOSTENGRUPPEN","Kosten                  nachweis                   brutto","anerkannte Kosten          brutto","Sonstige          Kosten                           brutto","nicht anerkannte                  Kosten                             brutto","Anmerkungen evtl. Verweis auf Anlage","Kosten               anschlag                      brutto","Kosten             feststellung                            brutto","Sonstige Kosten\nbrutto","Anmerkungen evtl. Verweis auf Anlage"]
[]
["100","GRUNDSTÜCK"]
["110","Grundstückswert"]
["120","Grundstücksnebenkosten"]
["  121","  Vermessungsgebühren"]
["  122","  Gerichtsgebühren"]
["  123","  Notariatsgebühren"]
["  124","  Maklerprovisionen"]
["  125","  Grunderwerbssteuer"]
["  126","  Werteermittlungen, Untersuchungen",{"$nulls":5}," "]
["  127","  Genehmigungsgebühren"]
["  128","  Bodenordnung, Grenzregulierung"]
["  129","  Sonstiges"]
["130","Freimachen"]
["  131","Abfindungen"]
["  132","Ablösen dinglicher Rechte"]
["  139","Sonstiges"]
[]
["Gesamtsumme 100",null,{"$f":"SUM(C8:C23)","v":{"v":0,"d":"0.00 €"}},{"$f":"SUM(D8:D23)","v":{"v":0,"d":"0.00 €"}},{"v":0,"d":"0.00 €"},{"v":0,"d":"0.00 €"},null,{"v":0,"d":"0.00 €"},{"v":0,"d":"0.00 €"},{"v":0,"d":"0.00 €"}]
[]
["200","HERRICHTEN UND ERSCHLIESSEN"]
["210","Herrichten und Erschließen"]
["  211","  Sicherungsmaßnahmen"]
["  212","  Abbruchmaßnahmen"]
["  213","  Altlastbeseitigung"]
["  214","  Herrichten der Geländeoberfläche"]
["  219","  Sonstiges"]
["220","Öffentliche Erschließung"]
["  221","  Abwasserentsorgung"]
["  222","  Wasserversorgung"]
["  223","  Gasversorgung"]
["  224","  Fernwärmeversorgung"]
["  225","  Stromversorgung"]
["  226","  Telekommunikation"]
["  227","  Verkehrserschließung"]
["  228","  Abfallentsorgung"]
["  229","  Sonstiges"]
["230","Nichtöffentliche Erschließung"]
["240","Ausgleichsabgaben"]
["250","Übergangsmaßnahmen"]
["  251","  Provisorien"]
["  252","  Auslagerungen"]
[]
["Gesamtsumme 200",null,{"$f":"SUM(C27:C48)","v":{"v":0,"d":"0.00 €"}},{"$f":"SUM(D27:D48)","v":{"v":0,"d":"0.00 €"}},{"v":0,"d":"0.00 €"},{"v":0,"d":"0.00 €"},null,{"v":0,"d":"0.00 €"},{"v":0,"d":"0.00 €"},{"v":0,"d":"0.00 €"}]
[]
["300","BAUWERK | BAUKONSTRUKTIONEN"]
["  311","  Baugrubenherstellung",null,{"$f":"C52-F52","v":{"v":0,"d":"0.00 €"}}]
["  312","  Baugrubenumschließung",null,{"$f":"C53-F53","v":{"v":0,"d":"0.00 €"}}]
["  313","  Wasserhaltung",null,{"$f":"C54-F54","v":{"v":0,"d":"0.00 €"}}]
["  319","  Sonstiges",null,{"$f":"C55-F55","v":{"v":0,"d":"0.00 €"}}]
["320","Gründung"]
["  321","  Baugrundverbesserung",null,{"$f":"C57-F57","v":{"v":0,"d":"0.00 €"}}]
["  322","  Flachgründungen",null,{"v":0,"d":"0.00 €"}]
["  323","  Tiefgründungen",null,{"v":0,"d":"0.00 €"}]
["  324","  Unterböden und Bodenplatte",null,{"v":0,"d":"0.00 €"}]
["  325","  Bodenbeläge",null,{"v":0,"d":"0.00 €"}]
["  326","  Bauwerksabdichtungen",null,{"v":0,"d":"0.00 €"}]
["  327","  Drainagen",null,{"v":0,"d":"0.00 €"}]
["  329","  Sonstiges",null,{"v":0,"d":"0.00 €"}]
["330","Außenwände"]
["  331","  Tragende Außenwände",null,{"$f":"C66-F66","v":{"v":0,"d":"0.00 €"}}]
["  332","  Nichttragende Außenwände",null,{"v":0,"d":"0.00 €"}]
["  333","  Außenstützen",null,{"v":0,"d":"0.00 €"}]
["  334","  Außentüren und -fenster",null,{"v":0,"d":"0.00 €"}]
["  335","  Außenwandbekleidungen, außen",null,{"v":0,"d":"0.00 €"}]
["  336","  Außenwandbekleidungen, innen",null,{"v":0,"d":"0.00 €"}]
["  337","  Elementierte Außenwände",null,{"v":0,"d":"0.00 €"}]
["  338","  Sonnenschutz",null,{"v":0,"d":"0.00 €"}]
["  339","  Sonstiges",null,{"v":0,"d":"0.00 €"}]
["340","Innenwände"]
["  341","  Tragende Innenwände",null,{"$f":"C76-F76","v":{"v":0,"d":"0.00 €"}}]
["  342","  Nichttragende Innenwände",null,{"v":0,"d":"0.00 €"}]
["  343","  Innenstützen",null,{"v":0,"d":"0.00 €"}]
["  344","  Innentüren und -fenster",null,{"v":0,"d":"0.00 €"}]
["  345","  Innenwandbekleidungen",null,{"v":0,"d":"0.00 €"}]
["  346","  Elementierte Innenwände",null,{"v":0,"d":"0.00 €"}]
["  347","  Sonstiges",null,{"v":0,"d":"0.00 €"}]
["350","Decken"]
["  351","  Deckenkonstruktionen",null,{"$f":"C84-F84","v":{"v":0,"d":"0.00 €"}}]
["  352","  Deckenbeläge",null,{"$f":"C85-F85","v":{"v":0,"d":"0.00 €"}}]
["  353","  Deckenbekleidungen",null,{"$f":"C86-F86","v":{"v":0,"d":"0.00 €"}}]
["  359","  Sonstiges",null,{"$f":"C87-F87","v":{"v":0,"d":"0.00 €"}}]
["360","Dächer"]
["  361","  Dachkonstruktionen",null,{"$f":"C89-F89","v":{"v":0,"d":"0.00 €"}}]
["  362","  Dachfenster, Dachöffnungen",null,{"$f":"C90-F90","v":{"v":0,"d":"0.00 €"}}]
["  363","  Dachbeläge",null,{"$f":"C91-F91","v":{"v":0,"d":"0.00 €"}}]
["  364","  Dachbekleidungen",null,{"$f":"C92-F92","v":{"v":0,"d":"0.00 €"}}]
["  369","  Sonstiges",null,{"$f":"C93-F93","v":{"v":0,"d":"0.00 €"}}]
["370","Baukonstruktive Einbauten"]
["  371 ","  Allgemeine Einbauten"]
[null,"    Einbaumöbel"]
[null,"    Einbauküche"]
[null,"    Bühnenelemente"]
[null,"    "]
[]
["  372","  Besondere Einbauten | nicht restauratorisch"]
[null,"    Laiengestühl (Bankpodien, Sedilien)"]
[null,"    Emporen"]
[null,"    Glockenstuhl - Glocken"]
[null,"    Turmuhr - Zifferblätter"]
[]
[]
["  379","  Sonstiges "]
[]
["380","Grundkonstruktionen"]
["380 01","Baumeisterarbeiten"]
["380 02","Erdarbeiten"]
["380 06","Verbau-, Ramm- und Einpressarbeiten"]
["380 08","Wasserhaltungsarbeiten"]
["380 10","Drainarbeiten"]
["380 12","Mauerarbeiten"]
["380 13","Beton- und Stahlbetonarbeiten"]
[]
[]
[]
["380 14","Naturwerkstein-, Betonwerksteinarbeiten"]
["380 16","Zimmer- und Holzbauarbeiten"]
[]
["380 17","Stahlbauarbeiten "]
[]
["380 18","Abdichtungsarbeiten gegen Wasser"]
["380 20","Dachdeckungsarbeiten"]
["380 21","Dachabdichtungsarbeiten"]
["380 22","Klempnerarbeiten"]
["380 23","Putz- und Stuckarbeiten"]
["380 24","Fliesen- und Plattenarbeiten"]
["380 25","Estricharbeiten"]
["380 27","Tischlerarbeiten"]
[]
[]
[]
["380 28","Parkett- und Holzpflasterarbeiten"]
["380 29","Beschlagarbeiten"]
["380 30","Rolladenarbeiten, Rollabschlüsse,                             Sonnenschutz- und Verdunklungsanlagen"]
["380 31","Metallbau und Schlosserarbeiten"]
[]
["380 32","Verglasungsarbeiten"]
["380 34","Maler- und Lackierarbeiten"]
["380 34.1","Raumschale nicht restauratorisch"]
["380 35","Korrosionschutzarbeiten an Stahl- und Aluminiumkonstruktionen"]
["380 36","Bodenbelagsarbeiten"]
["380 37","Tapezierarbeiten"]
["380 39","Trockenbauarbeiten"]
[]
[]
[]
[]
[]
[]
["390","Sonstige Maßnahmen für Baukonstruktionen"]
["  391","  Baustelleneinrichtung"]
["  392","  Gerüste"]
["  393","  Sicherungsmaßnahmen"]
["  394","  Abbruchmaßnahmen"]
["  395","  Instandsetzungen"]
["  396","  Materialentsorgung"]
["  397","  Zusätzliche Maßnahmen"]
[null,"    Baureinigung"]
[null,"    Holzschutzmaßnahmen, Begasung"]
[]
["  398","  Provisorische Baukonstruktionen"]
["  399","  Sonstiges"]
[]
["Gesamtsumme 300",null,{"$f":"SUM(C52:C168)","v":{"v":0,"d":"0.00 €"}},{"$f":"SUM(D52:D168)","v":{"v":0,"d":"0.00 €"}},{"v":0,"d":"0.00 €"},{"v":0,"d":"0.00 €"},null,{"v":0,"d":"0.00 €"},{"v":0,"d":"0.00 €"},{"v":0,"d":"0.00 €"}]
[]
["400","Technische Anlagen"]
["410","Abwasser-, Wasser-, Gasanlagen"]
["  411","  Abwasseranlagen"]
["  412","  Wasseranlagen"]
["  413","  Gasanlagen"]
["  419","  Sonstiges"]
[]
["420","Wärmeversorgungsanlagen"]
["  421","  Wärmeerzeugungsanlagen"]
["  422","  Wärmeverteilnetze"]
["  423","  Raumheizflächen"]
["  429","  Sonstiges"]
[]
["430","Lüftungstechnische Anlagen"]
["  431","  Lüftungsanlagen"]
["  432","  Teilklimaanlagen"]
["  433","  Klimaanlagen"]
["  434","  Kälteanlagen"]
["  439","  Sonstiges"]
[]
["440","Starkstromanlagen"]
["  441","  Hoch- und Mittelspannungsanlagen"]
["  442","  Eigenstromversorgungsanlagen"]
["  443","  Niederspannungsschaltanlagen"]
["  444","  Niederspannungsinstallationsanlagen"]
["  445","  Beleuchtungsanlagen"]
["  446","  Blitzschutz- und Erdungsanlagen"]
["  449","  Sonstiges"]
[]
["450","Fernmelde- und informationstechn. Anlagen"]
["  451","  Telekommunikationsanlagen"]
["  452","  Such- und Signalanlagen"]
["  453","  Zeitdienstanlagen"]
["  454","  Elektroakustische Anlagen"]
["  455","  Fernseh- und Antennenanlagen"]
["  456","  Gefahrenmelde- und Alarmanlagen"]
["  457","  Übertragungsnetze"]
["  459","  Sonstiges "]
[]
["460","Förderanlagen"]
["  461","  Aufzugsanlagen"]
["  462","  Fahrtreppen, Fahrsteige"]
["  463","  Befahranlagen"]
["  464","  Transportanlagen"]
["  465","  Krananlagen"]
["  469","  Sonstiges"]
["470","Nutzungsspezifische Anlagen"]
["  471","  Küchentechnische Anlagen"]
["  472","  Wäscherei- und Reinigungsanlagen"]
["  473","  Medienversorgungsanlagen"]
["  474","  Medizin- und labortechnische Anlagen"]
["  475","  Feuerlöschanlagen"]
["  476","  Badetechnische Anlagen"]
["  477","  Prozesswärme-, -kälte- und -luftanlagen"]
["  478","  Entsorgungsanlagen"]
["  479","  Nutzungsspezifische Anlagen"]
["480","Gebäudeautomation"]
["  481","  Automationssysteme"]
["  482","  Schaltschränke"]
["  483","  Management- und Bedieneinrichtungen"]
["  484","  Raumautomationssysteme"]
["  485","  Übertragungsnetze"]
["  489","  Sonstiges"]
[]
["490","Sonstige Maßnahmen für techn. Anlagen"]
["  491","  Baustelleneinrichtung"]
["  492","  Gerüste"]
["  493","  Sicherungsmaßnahmen"]
["  494","  Abbruchmaßnahmen"]
["  495","  Instandsetzungen"]
["  496","  Materialentsorgung"]
["  497","  Zusätzliche Maßnahmen"]
["  498","  Provisorische technische Anlagen"]
["  499","  Sonstiges "]
[]
["Gesamtsumme 400",null,{"$f":"SUM(C172:C245)","v":{"v":0,"d":"0.00 €"}},{"$f":"SUM(D172:D245)","v":{"v":0,"d":"0.00 €"}},{"v":0,"d":"0.00 €"},{"v":0,"d":"0.00 €"},null,{"v":0,"d":"0.00 €"},{"v":0,"d":"0.00 €"},{"v":0,"d":"0.00 €"}]
[]
["500","AUSSENANLAGEN"]
["510","Geländeflächen"]
["  511","  Oberbodenarbeiten"]
["  512","  Bodenarbeiten"]
["  519","  Sonstiges"]
[]
["520","Befestigte Flächen"]
["  521","  Wege"]
["  522","  Straßen"]
["  523","  Plätze, Höfe"]
["  524","  Stellplätze"]
["  525","  Sportplatzflächen"]
["  526","  Spielplatzflächen"]
["  527","  Gleisanlagen"]
["  529","  Sonstiges"]
[]
["530","Baukonstruktionen in Außenanlagen"]
["  531","  Einfriedungen"]
["  532","  Schutzkonstruktionen"]
["  533","  Mauern, Wände"]
["  534","  Rampen, Treppen, Tribünen"]
["  535","  Überdachungen"]
["  536","  Brücken, Stege"]
["  537","  Kanal- und Schachtbauanlagen"]
["  538","  Wasserbauliche Anlagen"]
["  539","  Sonstiges"]
[]
["540","Technische Anlagen in Außenanlagen"]
["  541","  Abwasseranlagen"]
["  542","  Wasseranlagen"]
["  543","  Gasanlagen"]
["  544","  Wärmeversorgungsanlagen"]
["  545","  Lufttechnische Anlagen"]
["  546","  Starkstromanlagen"]
["  547","  Fernmelde- und informationstechn. Anlagen"]
["  548","  Nutzungsspezifische Anlagen"]
["  549","  Sonstiges"]
[]
["550","Einbauten in Außenanlagen"]
["  551","  Allgemeine Einbauten"]
["  552","  Besondere Einbauten"]
["  559","  Sonstiges"]
[]
["560","Wasserflächen"]
["  561","  Abdichtungen"]
["  562","  Bepflanzungen"]
["  569","  Sonstiges"]
[]
["570","Pflanz- und Saatflächen"]
["  571","  Oberbodenarbeiten"]
["  572","  Vegetationstechnische Oberbodenarbeiten"]
["  573","  Sicherungsbauweisen"]
["  574","  Pflanzen"]
["  575","  Rasen und Ansaaten"]
["  576","  Begrünung unterbauter Flächen"]
["  579","  Sonstiges"]
[]
["590","Sonstige Außenanlagen"]
[" 591","  Baustelleneinrichtung"]
[" 592","  Gerüste"]
[" 593","  Sicherungsmaßnahmen"]
[" 594","  Abbruchmaßnahmen"]
[" 595","  Instandsetzungen"]
[" 596","  Materialentsorgung"]
[" 597","  Zusätzliche Maßnahmen"]
[" 598","  Provisorische Außenanlagen"]
[" 599","  Sonstiges"]
[]
[]
["Gesamtsumme 500",null,{"$f":"SUM(C250:C316)","v":{"v":0,"d":"0.00 €"}},{"$f":"SUM(D250:D316)","v":{"v":0,"d":"0.00 €"}},{"$f":"SUM(E250:E316)","v":{"v":0,"d":"0.00 €"}},{"$f":"SUM(F250:F316)","v":{"v":0,"d":"0.00 €"}},null,{"$f":"SUM(H250:H316)","v":{"v":0,"d":"0.00 €"}},{"$f":"SUM(I250:I316)","v":{"v":0,"d":"0.00 €"}},{"$f":"SUM(J250:J316)","v":{"v":0,"d":"0.00 €"}}]
[]
["600","AUSSTATTUNG UND KUNSTWERKE"]
["610","Ausstattung"]
["  611","  Allgemeine Ausstattung"]
["611.1","    Lose Möblierung"]
["611.2","    Textilien (Fensterbehänge)"]
["611.3","    Sitz- und Kniebankauflagen"]
[]
[]
["  612","  Besondere Ausstattung"]
["612.1","   Orgelgehäuse"]
["612.2","   Orgelprospekt"]
["612.3","   Orgelwerk"]
["  619","  Sonstiges"]
["620","Kunstwerke"]
["  621","  Kunstobjekte"]
["621.1","    Liturgische Orte (Altar, Ambo, Taufbecken)"]
["621.2","    Ausstattung (Altaraufbauten, Kanzel..)"]
["621.3","    Bewegliche Ausstattung (Skulpturen, Gemälde)"]
["621.4","    Textilien"]
[]
[]
["  622","  Künstlerisch gestaltete Bauteile"]
["622.1","    Malereien und Fresken"]
["622.2","    Stuckarbeiten"]
["622.3","    Stuckmarmor"]
["622.4","    Holzarbeiten"]
["622.5","    Natursteinarbeiten"]
["622.6","    Metallarbeiten"]
["622.7","    Glasarbeiten"]
[]
[]
[]
["  623","  Künstl. gestaltete Bauteile der Außenanlagen"]
["  629","  Sonstiges"]
[]
["Gesamtsumme 600",null,{"$f":"SUM(C320:C353)","v":{"v":0,"d":"0.00 €"}},{"$f":"SUM(D320:D353)","v":{"v":0,"d":"0.00 €"}},{"v":0,"d":"0.00 €"},{"v":0,"d":"0.00 €"},null,{"v":0,"d":"0.00 €"},{"v":0,"d":"0.00 €"},{"v":0,"d":"0.00 €"}]
[]
["Zwischensumme 100-600",null,{"$f":"SUM(C354+C317+C246+C169+C49+C24)","v":{"v":0,"d":"0.00 €"}},{"$f":"SUM(D354+D317+D246+D169+D49+D24)","v":{"v":0,"d":"0.00 €"}},{"$f":"SUM(E354+E317+E246+E169+E49+E24)","v":{"v":0,"d":"0.00 €"}},{"$f":"SUM(F354+F317+F246+F169+F49+F24)","v":{"v":0,"d":"0.00 €"}},null,{"$f":"SUM(H354+H317+H246+H169+H49+H24)","v":{"v":0,"d":"0.00 €"}},{"$f":"SUM(I354+I317+I246+I169+I49+I24)","v":{"v":0,"d":"0.00 €"}},{"$f":"SUM(J354+J317+J246+J169+J49+J24)","v":{"v":0,"d":"0.00 €"}}]
[]
["700","BAUNEBENKOSTEN"]
["710","Bauherrenaufgaben"]
["  711","  Projektleitung"]
["  712","  Bedarfsplanung"]
["  713","  Projektsteuerung"]
["  719","  Sonstiges"]
["720","Vorbereitung der Objektplanung"]
["  721","  Untersuchungen"]
["  722","  Werteermittlungen"]
["  723","  Städtebauliche Leistungen"]
["  724","  Landschaftsplanerische Leistungen"]
["  725","  Wettbewerbe"]
["  729","  Sonstiges"]
[]
["730","Architekten- und Ingenieurleistungen"]
["  731","  Gebäudeplanung "]
["  732","  Freianlagenplanung"]
["  733","  Planung der raumbildenden Ausbauten"]
["  734","  Planung der Ingenieurbauwerke"]
["  735","  Tragwerksplanung"]
["  736","  Planung der technischen Ausrüstung HLS"]
[null,"  Planung der technischen Ausrüstung Elektro"]
["  737","  Restauratorische Fachbauleitung"]
["  739","  Sonstiges"]
[]
["740","Gutachten und Beratung "]
["  741","  Thermische Bauphysik"]
["  742","  Schallschutz und Raumakustik"]
["  743","  Bodenmechanik, Erd- und Grundbau"]
["  744","  Vermessung"]
["  745","  Lichttechnik, Tageslichttechnik"]
["  746","  Brandschutz"]
["  747","  Sicherheits- und Gesundheitsschutz"]
["  748","  Umweltschutz, Altlasten"]
["  749","  Sonstiges"]
[]
["750","Künstlerische Leistungen"]
["  751","  Kunstwettbewerbe"]
["  752","  Honorare"]
["  759","  Sonstiges"]
[]
["760","Finanzierungskosten"]
["  761","  Finanzierungsbeschaffung"]
["  762","  Fremdkapitalzinsen"]
["  763","  Eigenkapitalzinsen"]
["  769","  Sonstiges"]
[]
["770","Allgemeine Baunebenkosten"]
["  771","  Prüfung, Genehmigungen, Abnahmen"]
["  772","  Bewirtschaftungskosten"]
["  773","  Bemusterungskosten"]
["  774","  Betriebskosten nach der Abnahme"]
["  775","  Versicherungen"]
["  779","  Sonstiges"]
["Gesamtsumme 700",null,{"$f":"SUM(C359:C411)","v":{"v":0,"d":"0.00 €"}},{"$f":"SUM(D359:D411)","v":{"v":0,"d":"0.00 €"}},{"v":0,"d":"0.00 €"},{"v":0,"d":"0.00 €"},null,{"v":0,"d":"0.00 €"},{"v":0,"d":"0.00 €"},{"v":0,"d":"0.00 €"}]
[]
[]
["Gesamtkosten 100 - 700",null,{"$f":"C412+C354+C317+C246+C169+C49+C24","v":{"v":0,"d":"0.00 €"}},{"$f":"D412+D354+D317+D246+D169+D49+D24","v":{"v":0,"d":"0.00 €"}},{"$f":"E412+E354+E317+E246+E169+E49+E24","v":{"v":0,"d":"0.00 €"}},{"$f":"F412+F354+F317+F246+F169+F49+F24","v":{"v":0,"d":"0.00 €"}},null,{"$f":"H412+H354+H317+H246+H169+H49+H24","v":{"v":0,"d":"0.00 €"}},{"$f":"I412+I354+I317+I246+I169+I49+I24","v":{"v":0,"d":"0.00 €"}},{"$f":"J412+J354+J317+J246+J169+J49+J24","v":{"v":0,"d":"0.00 €"}}]
[]
[]
[]
["Name Architekt/Planer",null,"Ort",null,null,"Datum",null,null,"Unterschrift"]
[]
[]
["Name Diözesanarchitekt",null,"Regensburg",null,null,"Datum \nProjektnummer\nKürzel Gebietsarchitekt",null,null,"Unterschrift"]